bitfinex-derivatives/quotes_SOLF0:USTF0_20250117
["timestamp","ask_amount","ask_price","bid_price","bid_amount"]
[1737073840010,20.01505085,210.24,210.18,4.758]
[1737073840210,4.7572,210.22,210.16,4.7583]
[1737073841116,16.70657215,210.23,210.17,4.7581]
[1737073841415,4.94,210.26,210.15,2.9386]
[1737073841416,16.88967215,210.26,210.15,2.9386]
[1737073842118,4.7565,210.25,210.19,4.7578]
[1737073842417,4.7565,210.25,210.15,2.9386]
[1737073843117,4.7565,210.25,210.19,4.7576]
[1737073845313,16.88967215,210.26,210.15,2.9386]
[1737073845515,4.7571,210.23,210.17,4.7582]
[1737073846616,4.7571,210.22,210.17,4.7582]
[1737073846920,4.7571,210.22,210.16,4.7584]
[1737073847315,4.7571,210.22,210.15,2.9386]
[1737073847522,4.7571,210.22,210.17,4.7582]
[1737073848218,6.82598432,210.25,210.17,4.7582]
[1737073848419,4.7569,210.23,210.17,4.7582]
[1737073849422,7.65516846,210.22,210.17,4.7582]
[1737073851719,11.58311833,210.23,210.19,4.7578]
[1737073851720,6.82621833,210.23,210.19,4.7578]
[1737073851922,12.57516846,210.24,210.16,7.65516846]
[1737073852125,7.65516846,210.22,210.15,2.9386]
[1737073852429,7.65516846,210.22,210.18,4.7579]
[1737073852627,7.65516846,210.22,210.15,2.9386]
[1737073854930,14.48440383,210.22,210.15,2.9386]
[1737073855132,12.41236846,210.22,210.17,4.7581]
[1737073855327,7.65516846,210.22,210.17,4.7581]
[1737073855527,14.44059351,210.22,210.17,4.7581]
[1737073855827,7.65516846,210.22,210.17,4.7581]
[1737073857027,12.41236846,210.22,210.17,4.7581]
[1737073860229,7.65516846,210.22,210.17,4.7582]
[1737073860428,7.65516846,210.22,210.15,2.9386]
[1737073861032,12.41236846,210.22,210.17,4.7581]
[1737073861436,7.65516846,210.2,210.15,2.9386]
[1737073861630,12.41276846,210.2,210.15,4.7586]
[1737073862632,4.758,210.19,210.14,4.7588]
[1737073862835,7.65516846,210.18,210.14,4.7588]
[1737073864127,12.41316846,210.18,210.14,4.7588]
[1737073865938,4.758,210.18,210.14,4.7588]
[1737073868930,7.65516846,210.19,210.1,8.08289372]
[1737073869239,12.41366846,210.17,210.12,4.7593]
[1737073869938,12.41366846,210.17,210.13,4.7591]
[1737073870429,12.41386846,210.15,210.1,2.8921]
[1737073871428,12.41386846,210.15,210.11,4.7596]
[1737073871633,19.2532528,210.15,210.11,4.7596]
[1737073871931,12.41386846,210.15,210.12,4.7593]
[1737073872940,12.41446846,210.13,210.04,7.65516846]
[1737073873141,7.65516846,210.11,210.04,7.65516846]
[1737073873441,15.31711029,210.15,210.05,4.7609]
[1737073873442,12.41526846,210.09,210.05,4.7609]
[1737073875041,19.2614475,210.09,210.05,4.7609]
[1737073875246,12.41526846,210.09,210.05,4.7609]
[1737073875942,7.65516846,210.09,210.05,4.7609]
[1737073877839,7.65516846,210.09,210.06,4.7607]
[1737073884351,7.65516846,210.09,210.05,4.7609]
[1737073884551,7.65516846,210.09,210.02,7.65516846]
[1737073886242,7.65516846,210.09,210.06,4.7607]
[1737073891250,4.7592,210.13,210.08,4.7602]
[1737073891445,6.78693371,210.15,210.08,7.65516846]
[1737073891446,11.66693371,210.15,210.08,7.65516846]
[1737073891645,6.78693371,210.15,210.12,7.65516846]
[1737073891849,6.78903632,210.22,210.14,12.41406846]
[1737073892148,6.78903632,210.22,210.17,7.65516846]
[1737073892344,6.78903632,210.22,210.18,7.65516846]
[1737073892543,77.53782732,210.23,210.2,7.65516846]
[1737073892951,7.65516846,210.26,210.2,7.65516846]
[1737073893351,4.88,210.27,210.22,4.757]
[1737073893556,11.69455367,210.27,210.22,4.757]
[1737073893756,4.88,210.27,210.22,4.757]
[1737073895450,24.10552213,210.28,210.21,4.7573]
[1737073895655,7.65516846,210.26,210.18,7.65516846]
[1737073896657,20.14744386,210.28,210.04,4.4483533]
[1737073896658,7.65516846,210.24,210.04,4.4483533]
[1737073896858,6.81257479,210.27,210.04,4.4483533]
[1737073896859,7.65516846,210.2,210.13,7.65516846]
[1737073897060,7.65516846,210.18,210.11,7.65516846]
[1737073898063,7.65516846,210.18,210.13,4.759]
[1737073898655,7.65516846,210.18,210.14,4.7589]
[1737073898866,12.53516846,210.2,210.13,7.65516846]
[1737073899061,4.88,210.2,210.13,7.65516846]
[1737073899259,4.88,210.2,210.18,4.7579]
[1737073899860,4.88,210.2,210.15,7.65516846]
[1737073900066,4.88,210.2,210.19,4.7578]
[1737073900462,4.88,210.2,210.15,7.65516846]
[1737073902867,4.88,210.2,210.18,4.758]
[1737073904864,12.53516846,210.2,210.14,1.4458]
[1737073905166,7.65516846,210.17,210.1,7.65516846]
[1737073905365,7.65516846,210.17,210.06,1.5808]
[1737073905666,7.65516846,210.17,210.13,4.7591]
[1737073905867,7.65516846,210.17,210.11,7.65516846]
[1737073906066,22.92349758,210.17,210.11,7.65516846]
[1737073906266,6.81296629,210.16,210.14,4.7587]
[1737073907868,6.81296629,210.16,210.15,4.7587]
[1737073908072,4.7578,210.19,210.15,4.7587]
[1737073910167,17.29276846,210.2,210.15,4.7587]
[1737073911771,7.65516846,210.18,210.15,4.7587]
[1737073913575,7.65516846,210.18,210.16,4.7585]
[1737073913978,7.65516846,210.18,210.11,7.65516846]
[1737073914277,12.53516846,210.2,210.17,4.758]
[1737073918473,12.41316846,210.18,210.06,1.5808]
[1737073918771,7.65516846,210.16,210.08,7.65516846]
[1737073918976,7.65516846,210.16,210.12,4.7592]
[1737073919665,7.65516846,210.16,210.13,4.7591]
[1737073919868,12.41366846,210.16,210.13,4.7591]
[1737073921676,12.41366846,210.16,210.06,1.5808]
[1737073921677,7.65516846,210.16,210.06,1.5808]
[1737073921876,4.88,210.2,210.11,7.65516846]
[1737073922079,4.7585,210.16,210.1,4.7597]
[1737073922281,7.65516846,210.17,210.09,7.65516846]
[1737073923087,7.65516846,210.17,210.07,7.65516846]
[1737073923283,4.7588,210.15,210.07,7.65516846]
[1737073923477,22.92251153,210.19,210.09,7.65516846]
[1737073923781,6.81240779,210.18,210.11,7.65516846]
[1737073923981,20.02504307,210.2,210.15,4.7585]
[1737073924181,15.26734307,210.2,210.15,4.7585]
[1737073924879,4.7578,210.19,210.15,4.7585]
[1737073925075,15.26734307,210.19,210.11,7.65516846]
[1737073925276,15.26734307,210.2,210.16,4.7583]
[1737073925476,6.81240779,210.2,210.16,4.7583]
[1737073925672,14.46757625,210.21,210.16,4.7583]
[1737073926081,11.56990779,210.21,210.16,4.7583]
[1737073926279,6.81240779,210.21,210.19,4.7577]
[1737073927083,6.81240779,210.24,210.19,4.7577]
[1737073927278,6.81240779,210.24,210.15,7.65516846]
[1737073927484,6.81240779,210.24,210.18,4.758]
[1737073927684,7.65516846,210.23,210.18,4.758]
[1737073928186,22.92251153,210.23,210.18,4.758]
[1737073928379,6.81240779,210.22,210.18,4.758]
[1737073928979,7.65516846,210.23,210.18,4.758]
[1737073929179,12.41206846,210.23,210.18,4.758]
[1737073929378,15.26734307,210.23,210.17,7.65516846]
[1737073929574,21.80334479,210.24,210.19,7.65516846]
[1737073929778,15.26734307,210.23,210.2,4.7575]
[1737073930080,6.81240779,210.23,210.19,7.65516846]
[1737073930280,6.53600172,210.24,210.19,7.65516846]
[1737073930479,15.26734307,210.26,210.19,7.65516846]
[1737073930678,6.81240779,210.26,210.19,7.65516846]
[1737073930885,15.26734307,210.26,210.19,7.65516846]
[1737073931086,20.02354307,210.26,210.19,7.65516846]
[1737073931286,8.45493528,210.25,210.19,7.65516846]
[1737073931486,20.02354307,210.26,210.19,7.65516846]
[1737073932186,20.02354307,210.26,210.22,4.7571]
[1737073933087,15.26734307,210.26,210.22,4.7571]
[1737073933580,15.26734307,210.26,210.23,4.7568]
[1737073934177,6.81240779,210.26,210.23,4.7568]
[1737073934383,6.81240779,210.26,210.21,7.65516846]
[1737073934586,15.26734307,210.28,210.27,4.756]
[1737073934779,8.45493528,210.29,210.25,7.65516846]
[1737073934977,21.81273417,210.3,210.25,7.65516846]
[1737073935182,6.5453911,210.3,210.25,7.65516846]
[1737073935385,7.65516846,210.31,210.25,7.65516846]
[1737073935579,6.82842266,210.31,210.3,4.7553]
[1737073935790,22.95810421,210.34,210.3,4.7553]
[1737073936093,6.82842266,210.33,210.3,4.7553]
[1737073936587,6.82842266,210.33,210.27,7.65516846]
[1737073936791,6.82842266,210.33,210.32,4.7548]
[1737073936988,7.65516846,210.36,210.32,4.7548]
[1737073937681,14.48359112,210.36,210.32,4.7548]
[1737073937886,22.95402135,210.36,210.32,4.7548]
[1737073938091,6.82842266,210.35,210.32,4.7548]
[1737073938285,22.95402135,210.36,210.32,4.7548]
[1737073938491,6.82842266,210.35,210.32,4.7548]
[1737073939091,7.65516846,210.33,210.25,2.8874]
[1737073939289,7.65516846,210.31,210.25,2.8874]
[1737073939591,12.41036846,210.31,210.25,7.6437]
[1737073940293,7.65516846,210.31,210.25,2.8874]
[1737073940489,7.65516846,210.31,210.26,4.7562]
[1737073941085,7.65516846,210.27,210.08,6.61798908]
[1737073941291,4.88,210.29,210.18,7.65516846]
[1737073941492,7.65516846,210.27,210.2,7.65516846]
[1737073942190,12.41126846,210.27,210.22,4.7569]
[1737073942989,7.65516846,210.27,210.2,7.65516846]
[1737073943195,4.7562,210.26,210.22,4.7571]
[1737073944192,4.7562,210.26,210.23,4.7569]
[1737073944391,7.65516846,210.27,210.23,4.7569]
[1737073944593,4.756,210.28,210.23,4.7569]
[1737073945393,7.65516846,210.28,210.2,7.65516846]
[1737073946402,7.65516846,210.28,210.24,4.7566]
[1737073946799,14.46097019,210.28,210.24,4.7566]
[1737073947000,7.65516846,210.28,210.24,4.7566]
[1737073948401,7.65516846,210.26,210.15,2.9727]
[1737073948705,7.65516846,210.2,210.15,2.9727]
[1737073949498,7.65516846,210.2,210.16,4.7584]
[1737073950205,7.65516846,210.2,210.17,4.7582]
[1737073950905,4.7574,210.21,210.16,4.7585]
[1737073952607,12.41236846,210.22,210.16,4.7585]
[1737073953405,7.65516846,210.18,210.11,1.4561]
[1737073953606,7.65516846,210.16,210.09,7.65516846]
[1737073954001,12.41386846,210.16,210.11,4.7596]
[1737073954203,7.65516846,210.16,210.09,7.65516846]
[1737073954700,4.88,210.22,210.11,7.65516846]
[1737073954901,7.65516846,210.2,210.11,7.65516846]
[1737073955103,4.88,210.22,210.06,1.4433]
[1737073955104,4.7574,210.21,210.14,4.7589]
[1737073955305,4.7574,210.21,210.13,7.65516846]
[1737073955306,7.65516846,210.2,210.13,7.65516846]
[1737073955802,4.7574,210.21,210.15,4.7585]
[1737073956106,7.65516846,210.2,210.15,4.7585]
[1737073957907,7.65516846,210.2,210.16,4.7584]
[1737073958805,4.88,210.22,210.13,7.65516846]
[1737073959010,7.65516846,210.21,210.18,4.7579]
[1737073959311,7.65516846,210.21,210.15,7.65516846]
[1737073959508,4.88,210.22,210.15,7.65516846]
[1737073959708,7.65516846,210.21,210.15,7.65516846]
[1737073960212,7.65516846,210.21,210.17,4.7582]
[1737073960409,9.6371,210.22,210.17,4.7582]
[1737073960606,7.65516846,210.21,210.17,4.7582]
[1737073960917,4.88,210.22,210.17,4.7582]
[1737073961214,7.65516846,210.21,210.17,4.7582]
[1737073962212,7.65516846,210.19,210.06,1.4433]
[1737073962410,7.65516846,210.17,210.12,4.7593]
[1737073962807,7.65516846,210.15,210.12,4.7593]
[1737073964316,7.65516846,210.17,210.06,1.4433]
[1737073964516,7.65516846,210.17,210.08,7.65516846]
[1737073964716,14.46019995,210.17,210.08,7.65516846]
[1737073965017,7.65516846,210.17,210.08,7.65516846]
[1737073966219,4.7587,210.15,210.11,4.7595]
[1737073969619,7.65516846,210.15,210.09,4.7599]
[1737073969927,7.65516846,210.12,210.06,1.4433]
[1737073971216,12.41476846,210.12,210.08,4.7603]
[1737073972018,8.03282548,210.19,210.04,4.4483533]
[1737073972019,12.41516846,210.1,210.04,4.4483533]
[1737073972217,7.65516846,210.08,209.98,4.441]
[1737073972419,7.65516846,210.08,210.0,7.65516846]
[1737073972924,4.7605,210.07,210.03,4.7613]
[1737073973522,7.65516846,210.08,210.04,4.7611]
[1737073976134,7.65516846,210.06,209.91,4.08933341]
[1737073976433,8.41435275,210.13,210.01,7.65516846]
[1737073976634,12.41506846,210.1,210.04,4.761]
[1737073977532,7.65516846,210.1,210.05,4.7608]
[1737073980032,4.7596,210.11,210.05,4.7608]
[1737073980334,12.41446846,210.13,210.08,4.7602]
[1737073981235,12.41446846,210.13,210.05,7.65516846]
[1737073981432,12.41446846,210.13,210.07,4.7605]
[1737073983136,12.41446846,210.13,210.05,7.65516846]
[1737073983342,12.41446846,210.13,210.08,4.7603]
[1737073983535,12.41446846,210.13,209.93,9.5273]
[1737073983840,7.65516846,210.11,210.05,7.65516846]
[1737073984138,7.65516846,210.11,210.07,4.7605]
[1737073984339,4.88,210.12,210.07,4.7605]
[1737073984534,4.88,210.12,210.05,7.65516846]
[1737073985038,4.88,210.12,210.07,4.7605]
[1737073985643,4.88,210.12,210.08,4.7601]
[1737073985835,4.88,210.12,210.09,7.65516846]
[1737073986030,7.65516846,210.16,210.09,7.65516846]
[1737073986237,7.65516846,210.16,210.11,4.7596]
[1737073986433,7.65516846,210.14,209.99,1.4492]
[1737073986632,7.65516846,210.12,210.04,7.65516846]
[1737073987040,4.7596,210.11,210.04,7.65516846]
[1737073988238,7.65516846,210.1,210.0,2.9137]
[1737073988538,7.65516846,210.1,210.02,7.65516846]
[1737073988743,7.65516846,210.08,210.03,4.7612]
[1737073988945,12.41556846,210.08,210.03,4.7612]
[1737073989441,7.65516846,210.08,210.04,4.7611]
[1737073990240,4.7601,210.09,210.04,4.7611]
[1737073991145,7.65516846,210.08,210.01,7.65516846]
[1737073992244,7.65516846,210.08,210.04,4.7611]
[1737073997344,12.41546846,210.08,210.03,4.7614]
[1737073997647,7.65516846,210.06,210.0,2.9137]
[1737073998044,12.41606846,210.06,210.01,4.7617]
[1737074001547,4.761,210.05,210.01,4.7617]
[1737074001955,7.65516846,210.04,209.92,4.4605]
[1737074002155,7.65516846,210.02,209.92,4.4605]
[1737074002350,7.65516846,210.02,209.94,7.65516846]
[1737074003055,4.7624,209.99,209.94,12.41836846]
[1737074004348,7.65516846,210.02,209.94,12.41836846]
[1737074004544,4.7626,209.98,209.94,12.41836846]
[1737074005652,7.65516846,210.02,209.94,12.41836846]
[1737074005653,4.7622,210.0,209.97,4.7627]
[1737074007853,4.7618,210.02,209.92,4.4605]
[1737074008052,15.23792936,210.11,210.01,7.65516846]
[1737074008257,6.79917336,210.11,210.06,7.65516846]
[1737074008558,85.19299578,210.13,210.08,4.7603]
[1737074008559,15.24012176,210.12,210.08,4.7603]
[1737074008866,77.53782732,210.13,210.1,7.65516846]
[1737074009055,77.53782732,210.13,210.12,4.7594]
[1737074009250,4.88,210.17,210.12,4.7594]
[1737074009458,4.88,210.17,210.1,7.65516846]
[1737074009657,4.88,210.17,210.12,4.7593]
[1737074011250,7.65516846,210.16,210.01,2.9936]
[1737074011558,7.65516846,210.12,210.05,7.65516846]
[1737074011753,12.41456846,210.12,210.05,12.41596846]
[1737074012149,12.41456846,210.12,210.05,7.65516846]
[1737074012351,7.65516846,210.12,210.06,4.7607]
[1737074012557,7.65516846,210.12,210.05,7.65516846]
[1737074013757,4.7592,210.13,210.05,7.65516846]
[1737074014157,4.7592,210.13,210.07,4.7605]
[1737074014355,19.99856353,210.13,210.07,4.7605]
[1737074014754,11.54340731,210.13,210.07,4.7605]
[1737074014954,4.7592,210.13,210.07,4.7605]
[1737074015162,7.65516846,210.14,210.05,7.65516846]
[1737074015367,16.11044038,210.14,210.05,7.65516846]
[1737074015557,6.78420731,210.13,210.05,7.65516846]
[1737074015761,7.65516846,210.14,210.05,7.65516846]
[1737074016263,6.78420731,210.15,210.07,7.65516846]
[1737074016467,4.88,210.16,210.09,7.65516846]
[1737074016863,4.88,210.16,210.11,4.7594]
[1737074017166,11.66420731,210.16,210.11,4.7594]
[1737074017368,20.11897422,210.16,210.11,4.7594]
[1737074017865,15.23897422,210.16,210.12,4.7592]
[1737074018367,6.78420731,210.16,210.12,4.7592]
[1737074018759,16.10993537,210.17,210.13,4.7591]
[1737074018960,6.78310878,210.16,210.13,4.7591]
[1737074019168,7.65516846,210.17,210.13,4.7591]
[1737074019364,22.89117928,210.17,210.13,4.7591]
[1737074019567,6.78310878,210.16,210.13,4.7591]
[1737074020371,16.1080705,210.17,210.13,4.7591]
[1737074020570,7.65516846,210.17,210.13,4.7591]
[1737074021175,14.43554875,210.17,210.13,4.7591]
[1737074021473,7.65516846,210.17,210.13,4.7591]
[1737074022072,7.65516846,210.17,210.09,7.65516846]
[1737074022272,7.65516846,210.17,210.12,4.7593]
[1737074023266,12.41336846,210.17,210.12,4.7593]
[1737074026677,7.65516846,210.17,210.12,4.7593]
[1737074027675,12.41346846,210.17,210.12,4.7593]
[1737074029872,1.5125,210.23,210.15,4.7587]
[1737074030079,7.65516846,210.21,210.13,7.65516846]
[1737074030669,4.758,210.19,210.14,4.7587]
[1737074032481,4.7581,210.18,210.13,4.7591]
[1737074036083,19.95883111,210.18,210.13,4.7591]
[1737074036284,7.65516846,210.15,210.01,2.9936]
[1737074036479,4.88,210.2,210.07,4.7603]
[1737074036480,4.7594,210.12,210.07,4.7603]
[1737074036684,4.7594,210.12,210.01,2.9936]
[1737074036685,4.7594,210.12,210.05,7.65516846]
[1737074036885,7.65516846,210.13,210.05,7.65516846]
[1737074037281,14.42265352,210.13,210.05,7.65516846]
[1737074037485,4.7598,210.11,210.07,4.7603]
[1737074038684,12.41496846,210.11,210.07,4.7603]
[1737074038889,27.6127867,210.11,210.07,4.7603]
[1737074039083,11.52605772,210.1,210.07,4.7603]
[1737074039283,4.7599,210.1,210.07,4.7603]
[1737074039688,4.7599,210.1,210.06,4.7607]
[1737074040888,7.65516846,210.09,210.01,10.64876846]
[1737074041294,14.42132618,210.09,210.01,10.64876846]
[1737074041493,4.7606,210.07,210.04,4.7612]
[1737074042193,4.7603,210.08,210.04,4.7612]
[1737074042793,12.41526846,210.09,210.05,4.761]
[1737074043496,7.65516846,210.09,210.05,4.761]
[1737074044094,4.88,210.11,210.03,7.65516846]
[1737074044296,4.88,210.11,210.05,7.65516846]
[1737074045199,4.88,210.11,210.07,4.7605]
[1737074048903,4.7594,210.12,210.05,7.65516846]
[1737074049107,12.41436846,210.13,210.08,4.7603]
[1737074049800,7.65516846,210.13,210.05,7.65516846]
[1737074050002,7.65516846,210.11,210.05,4.7608]
[1737074050196,7.65516846,210.11,210.04,7.65516846]
[1737074050395,7.65516846,210.11,209.94,4.5617]
[1737074050396,8.44810076,210.15,210.14,4.7589]
[1737074050608,189.88177797,210.23,210.14,7.65516846]
[1737074050910,77.53782732,210.21,210.18,7.65516846]
[1737074051111,77.53782732,210.21,210.2,12.41276846]
[1737074051307,77.53782732,210.21,210.2,4.7576]
[1737074051515,7.65516846,210.28,210.2,7.65516846]
[1737074051813,4.7563,210.26,210.22,7.65516846]
[1737074052113,21.76965142,210.29,210.22,7.65516846]
[1737074052910,4.756,210.27,210.21,4.7573]
[1737074053111,4.756,210.27,210.21,7.65516846]
[1737074053312,19.99466931,210.27,210.21,7.65516846]
[1737074054609,19.99466931,210.27,210.21,12.41246846]
[1737074055812,15.23866931,210.27,210.23,7.65516846]
[1737074056009,15.23866931,210.29,210.23,7.65516846]
[1737074056213,15.23866931,210.29,210.25,7.65516846]
[1737074056418,0.16782,210.3,210.26,4.7562]
[1737074057111,0.16782,210.3,210.27,7.65516846]
[1737074057419,0.16782,210.3,210.28,4.7557]
[1737074059418,0.16782,210.3,210.27,7.65516846]
[1737074059622,0.16782,210.3,210.29,12.41066846]
[1737074059820,4.88,210.35,210.29,12.41066846]
[1737074061022,4.88,210.35,210.29,7.65516846]
[1737074061718,9.6342,210.35,210.29,7.65516846]
[1737074062620,4.88,210.35,210.29,7.65516846]
[1737074063224,4.88,210.35,210.29,12.41066846]
[1737074063414,9.6343,210.35,210.29,7.65516846]
[1737074065124,13.28327153,210.35,210.29,7.65516846]
[1737074065318,4.88,210.35,210.29,7.65516846]
[1737074065519,8.40327153,210.36,210.31,12.41006846]
[1737074065725,8.40327153,210.36,210.33,7.65516846]
[1737074066020,15.1475946,210.36,210.33,7.65516846]
[1737074066223,21.63879407,210.36,210.33,7.65516846]
[1737074066425,21.63879407,210.36,210.31,12.41006846]
[1737074066825,21.63879407,210.36,210.31,7.65516846]
[1737074067027,21.63879407,210.36,210.32,4.7548]
[1737074067721,15.1475946,210.36,210.32,4.7548]
[1737074068123,15.1475946,210.38,210.32,4.7548]
[1737074068322,21.62862874,210.38,210.32,4.7548]
[1737074069523,21.62862874,210.38,210.31,7.65516846]
[1737074069727,21.62862874,210.38,210.33,7.65516846]
[1737074069930,15.1475946,210.37,210.33,7.65516846]
[1737074070228,21.62862874,210.4,210.34,4.7543]
[1737074070421,15.1475946,210.39,210.34,4.7543]
[1737074070617,21.62862874,210.4,210.34,4.7543]
[1737074070924,21.62862874,210.4,210.35,7.65516846]
[1737074071227,6.74432307,210.39,210.37,7.65516846]
[1737074071424,24.75903343,210.44,210.38,4.7535]
[1737074071619,15.12673343,210.43,210.38,4.7535]
[1737074072017,21.59987706,210.43,210.38,4.7535]
[1737074072419,21.59987706,210.43,210.37,7.65516846]
[1737074072619,15.12673343,210.42,210.39,4.7532]
[1737074072821,15.12673343,210.44,210.39,12.40836846]
[1737074073020,8.38241036,210.44,210.39,12.40836846]
[1737074073222,14.35960191,210.46,210.39,12.40836846]
[1737074073627,14.35960191,210.46,210.4,4.7529]
[1737074073822,89.08,210.52,210.41,7.65516846]
[1737074074128,4.7513,210.48,210.41,7.65516846]
[1737074074331,77.53782732,210.55,210.43,7.65516846]
[1737074074534,4.7508,210.51,210.43,7.65516846]
[1737074074722,4.7508,210.51,210.45,7.65516846]
[1737074075131,4.86,210.54,210.45,7.65516846]
[1737074075432,7.65516846,210.53,210.36,1.5398]
[1737074075732,4.7505,210.52,210.45,12.40686846]
[1737074075933,4.7505,210.52,210.45,7.65516846]
[1737074076925,12.40536846,210.53,210.46,4.7515]
[1737074077127,12.40536846,210.53,210.45,7.65516846]
[1737074078333,4.7499,210.54,210.47,7.65516846]
[1737074078834,4.7504,210.52,210.47,7.65516846]
[1737074079935,12.40526846,210.53,210.47,7.65516846]
[1737074080433,4.7501,210.53,210.48,4.7512]
[1737074081330,4.7499,210.55,210.49,7.65516846]
[1737074081530,7.65516846,210.56,210.49,7.65516846]
[1737074082425,7.65516846,210.56,210.36,1.5398]
[1737074082625,7.65516846,210.56,210.5,7.65516846]
[1737074083326,4.7497,210.55,210.5,7.65516846]
[1737074087137,4.7494,210.56,210.52,7.65516846]
[1737074087730,2.9441,210.63,210.52,12.40546846]
[1737074087937,12.51516846,210.62,210.54,7.65516846]
[1737074088431,89.06,210.66,210.54,7.65516846]
[1737074088636,7.65516846,210.62,210.56,7.65516846]
[1737074089031,4.86,210.65,210.58,7.65516846]
[1737074089032,4.748,210.63,210.58,7.65516846]
[1737074089235,7.65516846,210.64,210.56,7.65516846]
[1737074090139,4.7489,210.59,210.56,7.65516846]
[1737074091740,7.65516846,210.64,210.56,7.65516846]
[1737074091942,4.7486,210.6,210.56,7.65516846]
[1737074093942,7.65516846,210.58,210.5,4.7507]
[1737074094133,7.65516846,210.56,210.49,7.65516846]
[1737074094339,7.65516846,210.58,210.51,7.65516846]
[1737074094941,6.68453903,210.62,210.53,7.65516846]
[1737074095143,7.65516846,210.61,210.53,7.65516846]
[1737074095543,4.7488,210.59,210.55,7.65516846]
[1737074095940,6.68453903,210.63,210.57,7.65516846]
[1737074096140,12.51516846,210.64,210.57,7.65516846]
[1737074096340,4.7486,210.6,210.57,7.65516846]
[1737074096845,4.7488,210.59,210.57,7.65516846]
[1737074097640,4.7488,210.59,210.44,1.4368]
[1737074097641,4.7488,210.59,210.55,7.65516846]
[1737074100344,4.7494,210.57,210.51,4.7505]
[1737074100546,7.65516846,210.58,210.44,1.4368]
[1737074100747,7.65516846,210.58,210.51,7.65516846]
[1737074101145,7.65516846,210.6,210.53,7.65516846]
[1737074101748,4.7496,210.56,210.53,7.65516846]
[1737074102046,7.65516846,210.6,210.53,7.65516846]
[1737074102249,4.7498,210.55,210.53,7.65516846]
[1737074103146,15.07197743,210.6,210.53,7.65516846]
[1737074103447,19.93197743,210.62,210.58,7.65516846]
[1737074103749,4.7487,210.6,210.58,7.65516846]
[1737074103950,15.07197743,210.61,210.58,7.65516846]
[1737074104153,6.70659751,210.61,210.58,7.65516846]
[1737074104349,4.86,210.62,210.58,7.65516846]
[1737074105150,19.93197743,210.62,210.58,7.65516846]
[1737074105347,19.93197743,210.62,210.56,7.65516846]
[1737074105548,19.93197743,210.62,210.44,6.2968]
[1737074105850,4.7492,210.57,210.54,7.65516846]
[1737074106050,4.7492,210.57,210.44,6.2968]
[1737074106253,4.7492,210.57,210.54,7.65516846]
[1737074106649,4.7491,210.58,210.54,7.65516846]
[1737074108653,15.07197743,210.6,210.54,7.65516846]
[1737074108855,6.70659751,210.6,210.54,7.65516846]
[1737074109044,15.07197743,210.6,210.54,7.65516846]
[1737074109652,93.09213746,210.59,210.54,7.65516846]
[1737074109950,15.07197743,210.58,210.54,7.65516846]
[1737074110256,4.7493,210.57,210.54,7.65516846]
[1737074112661,4.7493,210.57,210.52,4.7503]
[1737074112953,7.65516846,210.59,210.44,1.4368]
[1737074113160,7.65516846,210.51,210.44,1.4368]
[1737074113459,7.65516846,210.49,210.43,1.5304]
[1737074113854,4.7515,210.47,210.43,1.5304]
[1737074114057,7.65516846,210.49,210.43,9.18556846]
[1737074114459,19.91642489,210.5,210.43,13.93786846]
[1737074114665,12.51516846,210.51,210.43,9.18556846]
[1737074114666,15.16552489,210.49,210.43,9.18556846]
[1737074114860,15.16552489,210.5,210.46,4.7517]
[1737074115062,4.86,210.51,210.47,7.65516846]
[1737074115366,6.76410533,210.54,210.49,7.65516846]
[1737074115565,77.53782732,210.53,210.52,7.65516846]
[1737074115966,4.86,210.57,210.52,7.65516846]
[1737074116263,4.86,210.57,210.54,7.65516846]
[1737074116656,20.0568522,210.57,210.54,7.65516846]
[1737074117367,20.0568522,210.57,210.52,4.7503]
[1737074117766,24.8062522,210.57,210.52,4.7503]
[1737074117963,9.6094,210.57,210.52,4.7503]
[1737074118360,87.14632732,210.61,210.56,4.7494]
[1737074118667,82.28632732,210.61,210.56,4.7494]
[1737074119467,4.7485,210.61,210.53,11.91855804]
[1737074120167,31.04577193,210.65,210.56,11.91855804]
[1737074121067,31.04577193,210.65,210.57,3.0001]
[1737074121263,82.39782732,210.7,210.6,11.91855804]
[1737074121464,4.7472,210.66,210.62,4.748]
[1737074122266,4.7472,210.66,210.61,4.7483]
[1737074122570,4.7468,210.68,210.6,11.91855804]
[1737074123969,4.7468,210.68,210.62,4.7481]